fUSD/lending_fUSD_20250511
["ID","MTS","AMOUNT","RATE_DAILY","PERIOD"]
[360761944,1746985856342,-1304.0,0.00015,2]
[360761945,1746985856353,-846.078,0.00015,2]
[360761946,1746985856364,-643.499,0.00015,2]
[360761947,1746985856374,-804.532,0.00015,2]
[360761948,1746985856383,-552.0,0.00015,2]
[360761949,1746985856393,-583.937,0.00015,2]
[360761950,1746985856405,-820.87622288,0.00015,2]
[360761951,1746985856498,-97.12377712,0.00015,2]
[360761952,1746985856507,-1455.0,0.00015,2]
[360761953,1746985856518,-464.33193296,0.00015,2]
[360761954,1746985856556,-414.66806704,0.00015,2]
[360761955,1746985856565,-4026.0,0.00015,2]
[360761956,1746985856575,-300.0,0.00015,2]
[360761957,1746985856584,-210.162,0.00015,2]
[360761958,1746985856594,-6816.0,0.00015,2]
[360761959,1746985856603,-650.786,0.00015,2]
[360761960,1746985856613,-243.318,0.00015,2]
[360761961,1746985856624,-465.00358335,0.00015,2]
[360761962,1746985856636,-13534.22567906,0.00015,2]
[360761963,1746985856782,-391.60546013,0.00015,2]
[360761964,1746985941229,204.0,0.00014,2]
[360761965,1746985974778,1035.31184257,0.00014119,2]
[360761966,1746985974799,10000.0,0.00014119,2]
[360761967,1746985974820,10000.0,0.00014119,2]
[360761968,1746985974841,10000.0,0.00014119,2]
[360761969,1746985974863,10000.0,0.00014119,2]
[360761970,1746985974883,2685.39815743,0.00014119,2]
[360761971,1746985996328,837.37,0.00014118,2]
[360761972,1746985999787,500.0,0.00026663,120]
[360761973,1746986029093,6477.23184257,0.00014089,2]
[360761974,1746986029116,10000.0,0.00014089,2]
[360761975,1746986029144,7422.76815743,0.00014089,2]
[360761976,1746986041610,200.0,0.00013804,2]
[360761977,1746986042553,252.25,0.00014088,2]
[360761978,1746986091596,166.83,0.00011259,2]
[360761979,1746986111100,988.96,0.00014026,2]
[360761980,1746986177757,969.19184257,0.00014024,2]
[360761981,1746986177780,10000.0,0.00014024,2]
[360761982,1746986177800,2815.47815743,0.00014024,2]
[360761983,1746986187476,1107.63,0.00012106,2]
[360761984,1746986204333,6076.89184257,0.00014017,2]
[360761985,1746986204356,426.50815743,0.00014017,2]
[360761986,1746986287662,673.46,0.00014049,2]
[360761987,1746986310054,183.38,0.00013956,2]
[360761988,1746986328363,4000.0,0.00013949,2]
[360761989,1746986387883,161.66,0.00013991,2]
[360761990,1746986388020,161.66,0.00014015,2]
[360761991,1746986388129,161.66,0.00014038,2]
[360761992,1746986388261,161.66,0.00014061,2]
[360761993,1746986458723,1444.35,0.00013929,2]
[360761994,1746986463633,231.73865908,0.00014119,2]
[360761995,1746986463832,231.73865908,0.00014119,2]
[360761996,1746986463864,2162.18452441,0.00014119,2]
[360761997,1746986463885,2785.47430585,0.00014119,2]
[360761998,1746986467002,900.23,0.0001392,2]
[360761999,1746986534238,1036.2,0.00014049,2]
[360762000,1746986568927,3954.57,0.00013924,2]
[360762001,1746986585524,1000.95589899,0.00028,120]
[360762002,1746986586194,1323.52569415,0.00014119,2]
[360762003,1746986586215,3789.05509711,0.00014119,2]
[360762004,1746986586242,200.8401712,0.00014119,2]
[360762005,1746986587185,167.36680933,0.00014119,2]
[360762006,1746986587237,4260.48399272,0.00014119,2]
[360762007,1746986588336,151.0,0.00014119,2]
[360762008,1746986588368,1431.25392964,0.00014119,2]
[360762009,1746986588391,2119.14939763,0.00014119,2]
[360762010,1746986589348,151.0,0.00014119,2]
[360762011,1746986589397,2958.66943939,0.00014119,2]
[360762012,1746986590192,2465.55786616,0.00014119,2]
[360762013,1746986590220,151.0,0.00014119,2]
[360762014,1746986591448,151.0,0.00014119,2]
[360762015,1746986591478,2003.62329682,0.00014119,2]
[360762016,1746986591501,51.00825831,0.00014119,2]
[360762017,1746986592486,232.83404669,0.00014119,2]
[360762018,1746986592517,1712.19296261,0.00014119,2]
[360762019,1746986593726,1426.82746884,0.00014119,2]
[360762020,1746986594736,1189.0228907,0.00014119,2]
[360762021,1746986595664,159.62,0.00013699,2]
[360762022,1746986595722,990.85240892,0.00014119,2]
[360762023,1746986596734,825.71034076,0.00014119,2]
[360762024,1746986597509,688.09195064,0.00014119,2]
[360762025,1746986598498,573.40995886,0.00014119,2]
[360762026,1746986599397,477.84163239,0.00014119,2]
[360762027,1746986600257,398.20136032,0.00014119,2]
[360762028,1746986601897,331.83446694,0.00014119,2]
[360762029,1746986603057,276.52872245,0.00014119,2]
[360762030,1746986603836,230.44060204,0.00014119,2]
[360762031,1746986604590,192.03383503,0.00014119,2]
[360762032,1746986605280,160.02819586,0.00014119,2]
[360762033,1746986606201,83.52089864,0.00014119,2]
[360762034,1746986606223,67.47910136,0.00014119,2]
[360762035,1746986607464,151.0,0.00014119,2]
[360762036,1746986608397,151.0,0.00014119,2]
[360762037,1746986609428,151.0,0.00014119,2]
[360762038,1746986610008,196.14097932,0.00014119,2]
[360762039,1746986625437,-250.0,0.0001436,2]
[360762040,1746986625460,-500.0,0.0001436,2]
[360762041,1746986625486,-300.0,0.00014365,2]
[360762042,1746986625510,-57.63,0.00014365,2]
[360762043,1746986639256,-92.37,0.00014365,2]
[360762044,1746986639282,-500.0,0.00014366,2]
[360762045,1746986639305,-357.06341845,0.00014366,2]
[360762046,1746986639337,-500.0,0.00014366,2]
[360762047,1746986639368,-500.0,0.00014366,2]
[360762048,1746986639400,-500.0,0.00014366,2]
[360762049,1746986639430,-500.0,0.00014366,2]
[360762050,1746986639461,-474.37776326,0.00014366,2]
[360762051,1746986639490,-500.0,0.00014366,2]
[360762052,1746986639522,-500.0,0.00014366,2]
[360762053,1746986639553,-500.0,0.00014366,2]
[360762054,1746986639581,-500.0,0.00014366,2]
[360762055,1746986639610,-500.0,0.00014366,2]
[360762056,1746986639640,-499.99999999,0.00014366,2]
[360762057,1746986639666,-1200.0,0.00014367,2]
[360762058,1746986639691,-300.0,0.00014367,2]
[360762059,1746986639716,-1076.1888183,0.0001437,2]
[360762060,1746986734731,-166.32,0.00014312,2]
[360762061,1746986734756,-31.4411817,0.0001437,2]
[360762062,1746986734780,-863.53778421,0.0001453,2]
[360762063,1746986734805,-1241.17688329,0.00014736,2]
[360762064,1746986734828,-1584.34550743,0.00014736,2]
[360762065,1746986734853,-1200.0,0.00014799,2]
[360762066,1746986734880,-300.0,0.00014799,2]
[360762067,1746986734904,-771.0865,0.000148,2]
[360762068,1746986734932,-1000.0,0.000148,2]
[360762069,1746986734959,-1590.9252,0.000148,2]
[360762070,1746986734982,-1955.67,0.000148,2]
[360762071,1746986735007,-9529.74570959,0.000148,2]
[360762072,1746986735032,-9529.74570951,0.00014811,2]
[360762073,1746986735057,-9529.74570951,0.00014822,2]
[360762074,1746986735082,-9529.74570951,0.00014833,2]
[360762075,1746986735108,-9529.74570951,0.00014844,2]
[360762076,1746986735134,-9529.74570951,0.00014856,2]
[360762077,1746986735159,-9529.74570951,0.00014867,2]
[360762078,1746986735183,-500.0,0.00014873,2]
[360762079,1746986735208,-2500.0,0.00014873,2]
[360762080,1746986735234,-9529.74570951,0.00014878,2]
[360762081,1746986735258,-207.4,0.00014881,2]
[360762082,1746986735282,-156.44547302,0.00014888,2]
[360762083,1746986735307,-9529.74570951,0.00014889,2]
[360762084,1746986735332,-163.94008468,0.0001489,2]
[360762085,1746986760765,3461.44,0.00013946,2]
[360762086,1746986775137,1000.0,0.00013941,2]
[360762087,1746986787110,2751.0,0.00013944,2]
[360762088,1746986803287,631.68,0.00013902,2]
[360762089,1746986822257,1188.183929,0.00014159,2]
[360762090,1746986827743,156.32,0.00013895,2]
[360762091,1746986840685,197.31,0.00013891,2]
[360762092,1746986897591,-155.143,0.00014231,2]
[360762093,1746986897619,-250.0,0.00014465,2]
[360762094,1746986897643,-316.65720014,0.00014698,2]
[360762095,1746986897667,-316.65720014,0.00014699,2]
[360762096,1746986897690,-316.65720014,0.00014699,2]
[360762097,1746986897714,-317.4553,0.00014781,2]
[360762098,1746986897739,-156.445473,0.00014781,2]
[360762099,1746986897762,-165.4256,0.00014789,2]
[360762100,1746986897789,-300.0,0.00014797,2]
[360762101,1746986897813,-191.97825051,0.00014798,2]
[360762102,1746986897837,-500.0,0.00014798,2]
[360762103,1746986897862,-228.86986772,0.00014798,2]
[360762104,1746986897886,-350.64384107,0.00014798,2]
[360762105,1746986897911,-467.98192206,0.00014798,2]
[360762106,1746986897935,-150.0,0.00014798,2]
[360762107,1746986897959,-300.0,0.00014798,2]
[360762108,1746986897991,-4953.14329804,0.00014799,2]
[360762109,1746986898024,-4953.14329804,0.00014799,2]
[360762110,1746986898057,-4953.14329804,0.00014799,2]
[360762111,1746986898093,-4953.14329804,0.00014799,2]
[360762112,1746986898125,-4953.14329804,0.00014799,2]
[360762113,1746986898155,-4953.14329804,0.00014799,2]
[360762114,1746986898185,-4953.14329804,0.00014799,2]
[360762115,1746986898216,-4953.14329804,0.00014799,2]
[360762116,1746986898247,-4953.14329804,0.00014799,2]
[360762117,1746986898279,-4953.14329804,0.00014799,2]
[360762118,1746986898310,-4953.14329804,0.00014799,2]
[360762119,1746986898342,-4953.14329804,0.00014799,2]
[360762120,1746986898375,-4953.14329804,0.00014799,2]
[360762121,1746986898406,-4953.14329804,0.00014799,2]
[360762122,1746986898436,-4953.14329804,0.00014799,2]
[360762123,1746986898465,-4953.14329804,0.00014799,2]
[360762124,1746986898494,-4953.14329804,0.00014799,2]
[360762125,1746986898523,-4953.14329804,0.00014799,2]
[360762126,1746986898551,-4953.14329804,0.00014799,2]
[360762127,1746986898578,-4953.14329804,0.00014799,2]
[360762128,1746986898607,-4953.14329804,0.00014799,2]
[360762129,1746986898635,-4953.14329804,0.00014799,2]
[360762130,1746986898663,-4953.14329804,0.00014799,2]
[360762131,1746986898690,-4953.14329804,0.00014799,2]
[360762132,1746986898718,-4953.14329804,0.00014799,2]
[360762133,1746986898747,-4953.14329804,0.00014799,2]
[360762134,1746986898775,-4953.14329804,0.00014799,2]
[360762135,1746986898803,-4953.14329804,0.00014799,2]
[360762136,1746986898831,-4953.14329804,0.00014799,2]
[360762137,1746986898859,-4953.14329804,0.00014799,2]
[360762138,1746986898887,-4953.14329804,0.00014799,2]
[360762139,1746986898920,-4953.14329804,0.00014799,2]
[360762140,1746986898948,-4953.14329804,0.00014799,2]
[360762141,1746986898976,-4953.14329804,0.00014799,2]
[360762142,1746986899005,-4953.14329804,0.00014799,2]
[360762143,1746986899034,-4953.14329804,0.00014799,2]
[360762144,1746986899064,-4953.14329804,0.00014799,2]
[360762145,1746986899095,-4953.14329804,0.00014799,2]
[360762146,1746986899126,-4953.14329804,0.00014799,2]
[360762147,1746986899155,-4953.14329804,0.00014799,2]
[360762148,1746986899184,-4953.14329804,0.00014799,2]
[360762149,1746986899212,-4953.14329804,0.00014799,2]
[360762150,1746986899241,-4953.14329804,0.00014799,2]
[360762151,1746986899272,-4953.14329804,0.00014799,2]
[360762152,1746986899302,-4953.14329804,0.00014799,2]
[360762153,1746986899333,-4953.14329804,0.00014799,2]
[360762154,1746986899363,-4953.14329804,0.00014799,2]
[360762155,1746986899557,-4953.14329804,0.00014799,2]
[360762156,1746986899586,-4953.14329804,0.00014799,2]
[360762157,1746986899619,-4953.14329804,0.00014799,2]
[360762158,1746986899647,-4953.14329804,0.00014799,2]
[360762159,1746986899675,-4953.14329804,0.00014799,2]
[360762160,1746986899704,-4953.14329804,0.00014799,2]
[360762161,1746986899734,-4953.14329804,0.00014799,2]
[360762162,1746986918374,-1000.0,0.000148,2]
[360762163,1746986918397,-226.6551,0.000148,2]
[360762164,1746986918422,-2500.0,0.000148,2]
[360762165,1746986918447,-500.0,0.000148,2]
[360762166,1746986918471,-583.51681948,0.000148,2]
[360762167,1746986918497,-3162.99039899,0.000148,2]
[360762168,1746986918520,-1000.0,0.00014801,2]
[360762169,1746986918544,-156.445473,0.00014811,2]
[360762170,1746986918571,-3162.99039894,0.00014811,2]
[360762171,1746986918596,-2707.40180959,0.00014822,2]
[360762172,1746986921343,1000.0,0.00028,120]
[360762173,1746986941242,36257.63,0.00013925,2]
[360762174,1746986976431,-184.0,0.00014699,2]
[360762178,1746986983051,-2298.3589,0.00014699,2]
[360762179,1746986983074,-183.41,0.00014699,2]
[360762180,1746986983107,-2278.4459171,0.00014799,2]
[360762181,1746986983133,-2278.4459171,0.00014799,2]
[360762182,1746986983160,-2278.4459171,0.00014799,2]
[360762183,1746986983188,-2278.4459171,0.00014799,2]
[360762184,1746986983217,-2278.4459171,0.00014799,2]
[360762185,1746986983246,-2278.4459171,0.00014799,2]
[360762186,1746986983275,-2278.4459171,0.00014799,2]
[360762187,1746986983302,-2278.4459171,0.00014799,2]
[360762188,1746986983329,-2278.4459171,0.00014799,2]
[360762189,1746986983356,-2278.4459171,0.00014799,2]
[360762190,1746986983383,-2278.4459171,0.00014799,2]
[360762191,1746986983409,-2278.4459171,0.00014799,2]
[360762192,1746986983436,-2278.4459171,0.00014799,2]
[360762193,1746986983463,-2278.4459171,0.00014799,2]
[360762194,1746986983490,-2278.4459171,0.00014799,2]
[360762195,1746986983517,-2278.4459171,0.00014799,2]
[360762196,1746986983545,-2278.4459171,0.00014799,2]
[360762197,1746986983572,-2278.4459171,0.00014799,2]
[360762198,1746986983597,-2278.4459171,0.00014799,2]
[360762199,1746986983624,-2278.4459171,0.00014799,2]
[360762200,1746986983650,-2278.4459171,0.00014799,2]
[360762201,1746986983676,-2278.4459171,0.00014799,2]
[360762202,1746986983704,-2278.4459171,0.00014799,2]
[360762203,1746986983730,-2278.4459171,0.00014799,2]
[360762204,1746986983756,-2278.4459171,0.00014799,2]
[360762205,1746986983782,-2278.4459171,0.00014799,2]
[360762206,1746986983808,-2278.4459171,0.00014799,2]
[360762207,1746986983837,-2278.4459171,0.00014799,2]
[360762208,1746986983864,-2278.4459171,0.00014799,2]
[360762209,1746986983893,-2278.4459171,0.00014799,2]
[360762210,1746986984141,-2278.4459171,0.00014799,2]
[360762211,1746986984172,-2278.4459171,0.00014799,2]
[360762212,1746986984200,-2278.4459171,0.00014799,2]
[360762213,1746986984228,-2278.4459171,0.00014799,2]
[360762214,1746986984257,-2278.4459171,0.00014799,2]
[360762215,1746986984285,-2278.4459171,0.00014799,2]
[360762216,1746986984313,-2278.4459171,0.00014799,2]
[360762217,1746986984339,-2278.4459171,0.00014799,2]
[360762218,1746986984365,-2278.4459171,0.00014799,2]
[360762219,1746986984388,-2278.4459171,0.00014799,2]
[360762220,1746986984409,-2278.4459171,0.00014799,2]
[360762221,1746986984433,-2278.4459171,0.00014799,2]
[360762222,1746986984459,-2278.4459171,0.00014799,2]
[360762223,1746986984486,-2278.4459171,0.00014799,2]
[360762224,1746986984513,-2278.4459171,0.00014799,2]
[360762225,1746986984550,-2278.4459171,0.00014799,2]
[360762226,1746986984577,-2278.4459171,0.00014799,2]
[360762227,1746986984604,-2278.4459171,0.00014799,2]
[360762228,1746986984632,-2278.4459171,0.00014799,2]
[360762229,1746986984660,-2272.28795517,0.00014799,2]
[360762230,1746986984688,-2272.28795517,0.00014799,2]
[360762231,1746986984714,-2272.28795517,0.00014799,2]
[360762232,1746986984740,-2272.28795517,0.00014799,2]
[360762233,1746986984768,-2272.28795517,0.00014799,2]
[360762234,1746986984794,-2272.28795517,0.00014799,2]
[360762235,1746986984822,-2272.28795517,0.00014799,2]
[360762236,1746986984849,-2272.28795517,0.00014799,2]
[360762237,1746986984875,-2272.28795517,0.00014799,2]
[360762238,1746986984902,-2272.28795517,0.00014799,2]
[360762239,1746986984929,-2272.28795517,0.00014799,2]
[360762240,1746986984956,-2272.28795517,0.00014799,2]
[360762241,1746986984982,-2272.28795517,0.00014799,2]
[360762242,1746986985009,-2272.28795517,0.00014799,2]
[360762243,1746986985037,-2272.28795517,0.00014799,2]
[360762244,1746986985063,-2272.28795517,0.00014799,2]
[360762245,1746986985091,-2272.28795517,0.00014799,2]
[360762246,1746986985119,-2272.28795517,0.00014799,2]
[360762247,1746986985146,-2272.28795517,0.00014799,2]
[360762248,1746986985172,-2272.28795517,0.00014799,2]
[360762249,1746986985200,-2272.28795517,0.00014799,2]
[360762250,1746986985266,-2272.28795517,0.00014799,2]
[360762251,1746986985326,-2272.28795517,0.00014799,2]
[360762252,1746986985381,-2272.28795517,0.00014799,2]
[360762253,1746986985433,-2272.28795517,0.00014799,2]
[360762254,1746986985490,-2272.28795517,0.00014799,2]
[360762255,1746986985535,-2272.28795517,0.00014799,2]
[360762256,1746986985579,-2272.28795517,0.00014799,2]
[360762257,1746986985637,-2272.28795517,0.00014799,2]
[360762258,1746986985685,-2272.28795517,0.00014799,2]
[360762259,1746986985731,-1705.742507,0.00014799,2]
[360762262,1746987032313,-804.69,0.00014699,2]
[360762263,1746987032355,-1447.7057,0.00014699,2]
[360762264,1746987032365,-150.69156866,0.00014785,2]
[360762265,1746987032374,-1200.0,0.00014798,2]
[360762266,1746987032383,-566.54544817,0.00014799,2]
[360762267,1746987032392,-2281.30497085,0.00014799,2]
[360762268,1746987032402,-2281.30497085,0.00014799,2]
[360762269,1746987032411,-2281.30497085,0.00014799,2]
[360762270,1746987032421,-2281.30497085,0.00014799,2]
[360762271,1746987032430,-2281.30497085,0.00014799,2]
[360762272,1746987032439,-2281.30497085,0.00014799,2]
[360762273,1746987032448,-2281.30497085,0.00014799,2]
[360762274,1746987032457,-455.58858935,0.00014822,2]
[360762275,1746987032466,-3162.99039894,0.00014833,2]
[360762276,1746987032477,-156.445473,0.00014841,2]
[360762277,1746987032486,-3162.99039894,0.00014844,2]
[360762278,1746987032495,-3162.99039894,0.00014856,2]
[360762279,1746987032504,-743.7828,0.00014859,2]
[360762280,1746987032514,-3162.99039894,0.00014867,2]
[360762281,1746987032523,-156.445473,0.0001487,2]
[360762282,1746987032533,-3162.99039894,0.00014878,2]
[360762283,1746987032542,-151.0,0.00014881,2]
[360762284,1746987032553,-151.0,0.00014881,2]
[360762285,1746987032563,-151.0,0.00014881,2]
[360762286,1746987032572,-668.65185757,0.00014881,2]
[360762287,1746987032583,-151.0,0.00014881,2]
[360762288,1746987032593,-207.4,0.00014881,2]
[360762289,1746987032603,-3162.99039894,0.00014889,2]
[360762290,1746987032613,-387.27991532,0.0001489,2]
[360762291,1746987032623,-159.37207776,0.0001489,2]
[360762292,1746987032632,-1090.70505196,0.0001489,2]
[360762293,1746987032641,-159.37207774,0.00014891,2]
[360762294,1746987032651,-159.37207774,0.00014893,2]
[360762295,1746987032660,-159.37207774,0.00014894,2]
[360762296,1746987032670,-159.37207774,0.00014895,2]
[360762297,1746987032679,-159.37207774,0.00014896,2]
[360762298,1746987032688,-159.37207774,0.00014898,2]
[360762299,1746987032698,-159.37207774,0.00014899,2]
[360762300,1746987032707,-150.0,0.00014899,2]
[360762301,1746987032718,-1501.0693,0.00014899,2]
[360762303,1746987032729,-1881.94513181,0.00014899,2]
[360762305,1746987032739,-1881.94513181,0.00014899,2]
[360762307,1746987032748,-39531.6369,0.000149,2]
[360762309,1746987032758,-45864.3254,0.000149,2]
[360762311,1746987032767,-166.55221697,0.000149,2]
[360762313,1746987032777,-513.99035543,0.000149,2]
[360762316,1746987032786,-1090.1965,0.000149,2]
[360762318,1746987032795,-239.69209658,0.000149,2]
[360762320,1746987032804,-159.37207774,0.000149,2]
[360762322,1746987032814,-3162.99039894,0.000149,2]
[360762324,1746987032823,-156.445473,0.000149,2]
[360762326,1746987032833,-1266.4619148,0.000149,2]
[360762328,1746987032842,-407.55572032,0.000149,2]
[360762330,1746987032853,-798.0,0.00014912,2]
[360762332,1746987032862,-627.0,0.00014912,2]
[360762334,1746987032871,-1455.0,0.00014912,2]
[360762336,1746987032880,-552.0,0.00014912,2]
[360762338,1746987032889,-583.0,0.00014912,2]
[360762340,1746987032899,-310.569,0.00014912,2]
[360762342,1746987032907,-406.4610138,0.00014924,2]
[360762344,1746987032916,-151.0,0.00014936,2]
[360762346,1746987032926,-1145.0,0.00014937,2]
[360762348,1746987032934,-5938.0,0.00014937,2]
[360762350,1746987032943,-7592.0,0.00014959,2]
[360762352,1746987032952,-500.0,0.00014973,2]
[360762354,1746987032961,-500.0,0.00014973,2]
[360762356,1746987032970,-500.83977743,0.00014973,2]
[360762358,1746987032980,-500.0,0.00014973,2]
[360762360,1746987032990,-500.0,0.00014973,2]
[360762362,1746987032999,-500.0,0.00014973,2]
[360762364,1746987033009,-500.0,0.00014973,2]
[360762366,1746987033018,-500.0,0.00014973,2]
[360762368,1746987033027,-500.0,0.00014973,2]
[360762370,1746987033037,-12038.6851074,0.00014988,2]
[360762372,1746987033051,-39243.5851784,0.00014988,2]
[360762381,1746987033127,-2729.8716691,0.00014988,2]
[360762385,1746987033160,-1063.44509394,0.00014988,2]
[360762387,1746987033210,-3466.9925743,0.00014988,2]
[360762388,1746987033245,-339.17912446,0.00014988,2]
[360762391,1746987038268,-709.08266212,0.000147,2]
[360762392,1746987038281,-5393.07413788,0.000147,2]
[360762393,1746987038290,-1218.67580292,0.00014988,2]
[360762394,1746987038322,-4279.49322348,0.00014988,2]
[360762395,1746987038332,-3643.37071218,0.00014988,2]
[360762396,1746987038344,-24334.84225142,0.00014988,2]
[360762397,1746987038353,-4665.42912612,0.00014988,2]
[360762398,1746987038398,-1138.66621302,0.00014988,2]
[360762399,1746987038541,-1313.34246396,0.00014988,2]
[360762400,1746987038553,-6194.5755666,0.00014988,2]
[360762401,1746987038563,-879.0,0.00014989,2]
[360762402,1746987038572,-4026.0,0.00014989,2]
[360762403,1746987038581,-154.0,0.00014989,2]
[360762404,1746987038590,-3815.38698609,0.00014989,2]
[360762426,1746987041130,-1668.82613597,0.00014859,2]
[360762427,1746987041140,-281.17386403,0.00014989,2]
[360762428,1746987041152,-1650.05512954,0.00014989,2]
[360762429,1746987041163,-1069.38402034,0.00014989,2]
[360762430,1746987041173,-3246.84608494,0.00014989,2]
[360762431,1746987041185,-606.05829084,0.00014989,2]
[360762432,1746987041197,-5320.33573942,0.00014989,2]
[360762433,1746987041207,-1919.8552216,0.00014989,2]
[360762434,1746987041216,-348.75268752,0.00014989,2]
[360762435,1746987041226,-1989.92565146,0.0001499,2]
[360762436,1746987041239,-25766.69942674,0.0001499,2]
[360762437,1746987041249,-150.0,0.00015,2]
[360762438,1746987041259,-150.0,0.00015,2]
[360762439,1746987041269,-359.055,0.00015,2]
[360762440,1746987041279,-929.0,0.00015,2]
[360762441,1746987041288,-213849.48767927,0.00015,2]
[360762445,1746987043332,-40599.04149524,0.00015,2]
[360762446,1746987043349,-115816.68209314,0.00015,2]
[360762447,1746987043364,-15468.83166515,0.00015,2]
[360762448,1746987043446,-500.0,0.00015,2]
[360762449,1746987043458,-5932.81606621,0.00015,2]
[360762450,1746987043505,-381.724,0.00015,2]
[360762451,1746987043517,-593.22991051,0.00015,2]
[360762463,1746987043863,-15954.18192919,0.00015,2]
[360762464,1746987043875,-106304.74986805,0.00015,2]
[360762465,1746987043886,-1000.0,0.00015,2]
[360762466,1746987043897,-5020.83828484,0.00015,2]
[360762467,1746987043908,-42908.35883907,0.00015,2]
[360762468,1746987043919,-1781.137005,0.00015,2]
[360762469,1746987043931,-1363.68834929,0.00015,2]
[360762470,1746987043942,-4592.27815191,0.00015,2]
[360762471,1746987043953,-1814.74099537,0.00015,2]
[360762472,1746987043964,-8456.29292692,0.00015,2]
[360762473,1746987046395,-3050.4888,0.00014989,2]
[360762474,1746987046453,-4615.1453151,0.00014989,2]
[360762475,1746987046464,-3396.89818515,0.00014989,2]
[360762537,1746987050445,-59318.10068675,0.00014989,2]
[360762538,1746987050455,-715004.34402066,0.00015,2]
[360762539,1746987050464,-1716053.55403438,0.00015,2]
[360762540,1746987050476,-1761.37212073,0.00015,2]
[360762541,1746987050545,-9244.9878174,0.00015,2]
[360762542,1746987050565,-798.75001,0.00015,2]
[360762543,1746987050589,-393.8979766,0.00015,2]
[360762544,1746987050665,-404.77726236,0.00015,2]
[360762545,1746987050684,-3743.82174336,0.00015,2]
[360762546,1746987053650,-1009.79999994,0.00014864,2]
[360762547,1746987053749,-659.02613601,0.00014864,2]
[360762548,1746987053759,-5938.0,0.00014989,2]
[360762549,1746987053770,-91640.77854439,0.00015,2]
[360762550,1746987053782,-265270.53644385,0.00015,2]
[360762551,1746987053808,-480.4003289,0.00015,2]
[360762552,1746987053819,-904.44999998,0.00015,2]
[360762553,1746987053836,-21245.87739771,0.00015,2]
[360762554,1746987053866,-617021.4071771,0.00015,2]
[360762555,1746987120307,252.62,0.00014179,2]
[360762556,1746987138155,2027.98,0.00014127,2]
[360762557,1746987140753,346.12,0.00014097,2]
[360762558,1746987168444,1719.52,0.00014126,2]
[360762559,1746987192499,6336.126513,7.945e-05,2]
[360762560,1746987199461,500.0,0.00027079,120]
[360762561,1746987221643,250.0,0.00014005,2]
[360762562,1746987224311,892.59,0.00014005,2]
[360762563,1746987247065,3017.59,0.00014004,2]
[360762564,1746987258863,2873.22,0.00012074,2]
[360762565,1746987267438,150.0,1e-08,2]
[360762566,1746987281104,150.0,0.00013953,2]
[360762567,1746987293873,808.83,0.00013953,2]
[360762568,1746987308067,-341.94092392,0.00014238,2]
[360762569,1746987308090,-200.0,0.00014285,2]
[360762570,1746987308113,-2873.22,0.00014338,2]
[360762571,1746987308135,-500.0,0.00014767,2]
[360762572,1746987308161,-300.0,0.00014773,2]
[360762573,1746987308186,-1200.0,0.00014773,2]
[360762574,1746987308209,-23370.98454817,0.00014774,2]
[360762575,1746987308236,-150.0,0.00014782,2]
[360762576,1746987308260,-190.98245801,0.00014783,2]
[360762577,1746987308284,-163.63152982,0.00014783,2]
[360762578,1746987308307,-500.0,0.00014783,2]
[360762579,1746987308338,-500.0,0.00014783,2]
[360762580,1746987308362,-550.75931658,0.00014783,2]
[360762581,1746987308395,-500.0,0.00014783,2]
[360762582,1746987308417,-500.0,0.00014783,2]
[360762583,1746987308445,-500.0,0.00014783,2]
[360762584,1746987308475,-500.0,0.00014783,2]
[360762585,1746987308499,-500.0,0.00014783,2]
[360762586,1746987308529,-500.0,0.00014783,2]
[360762587,1746987308555,-500.0,0.00014783,2]
[360762588,1746987308584,-500.0,0.00014783,2]
[360762589,1746987308613,-500.0,0.00014783,2]
[360762590,1746987308636,-500.0,0.00014783,2]
[360762591,1746987308666,-500.0,0.00014783,2]
[360762592,1746987308695,-500.0,0.00014783,2]
[360762593,1746987308723,-500.0,0.00014783,2]
[360762594,1746987308751,-500.0,0.00014783,2]